fUST/lending_fUST_20250617
["ID","MTS","AMOUNT","RATE_DAILY","PERIOD"]
[366200315,1750114243509,-471.98590608,0.00022191,4]
[366200317,1750114243519,-245.15804058,0.00022191,4]
[366200319,1750114243536,-214.84195942,0.00022191,4]
[366200321,1750114243546,-460.0,0.00022191,4]
[366200323,1750114243556,-460.0,0.00022191,4]
[366200325,1750114243566,-420.0,0.00022231,2]
[366200327,1750114243576,-168.0,0.00022242,2]
[366200329,1750114243586,-274.0,0.00022255,2]
[366200331,1750114243596,-1680.0,0.00022338,2]
[366200333,1750114243607,-460.0,0.00022465,2]
[366200335,1750114243617,-460.0,0.00022465,4]
[366200337,1750114243627,-460.0,0.00022465,4]
[366200339,1750114243637,-460.0,0.00022465,2]
[366200341,1750114243648,-460.0,0.00022465,4]
[366200343,1750114243658,-460.0,0.00022465,4]
[366200345,1750114243668,-460.0,0.00022465,4]
[366200347,1750114243679,-199.19747892,0.00022465,4]
[366200349,1750114243689,-9999.99999902,0.000225,4]
[366200351,1750114243699,-168.0,0.00022518,2]
[366200353,1750114243712,-392.02500891,0.00022547,3]
[366200355,1750114243722,-168.0,0.00022604,2]
[366200358,1750114243734,-415.95416705,0.00022625,2]
[366200360,1750114243744,-391.0,0.0002266,2]
[366200361,1750114243754,-500.0,0.00022684,2]
[366200364,1750114243765,-500.0,0.00022684,2]
[366200365,1750114243774,-645.84577878,0.00022684,2]
[366200367,1750114243784,-500.0,0.00022706,2]
[366200369,1750114243794,-265.21500939,0.00022706,2]
[366200371,1750114243804,-500.0,0.00022706,2]
[366200373,1750114243815,-322.74270453,0.00022739,2]
[366200375,1750114243825,-460.0,0.00022739,4]
[366200377,1750114243835,-460.0,0.00022739,4]
[366200379,1750114243846,-460.0,0.00022739,2]
[366200381,1750114243855,-460.0,0.00022739,4]
[366200383,1750114243866,-460.0,0.00022739,4]
[366200385,1750114243876,-460.0,0.00022739,4]
[366200387,1750114243886,-502.54510708,0.00022755,2]
[366200389,1750114243896,-161.97307835,0.00022755,2]
[366200391,1750114243906,-500.67063591,0.00022755,2]
[366200393,1750114243917,-500.0,0.00022755,2]
[366200395,1750114243927,-479.64270312,0.00022805,2]
[366200398,1750114243937,-156.57663905,0.00022805,2]
[366200399,1750114243947,-500.0,0.00022805,2]
[366200402,1750114243961,-505.67096782,0.00022805,2]
[366200405,1750114243970,-500.0,0.00022805,2]
[366200408,1750114243980,-500.0,0.00022805,2]
[366200411,1750114243989,-293.457855,0.00022887,2]
[366200414,1750114243999,-500.0,0.00022887,2]
[366200417,1750114244008,-506.63167731,0.00022907,2]
[366200420,1750114244018,-391.0,0.0002292,2]
[366200423,1750114244028,-500.0,0.00022941,2]
[366200425,1750114244038,-607.72295623,0.00022983,2]
[366200427,1750114244048,-500.0,0.00022983,2]
[366200429,1750114244058,-500.0,0.00022983,2]
[366200431,1750114244069,-1624.43579241,0.00023,2]
[366200433,1750114244079,-168.0,0.00023012,2]
[366200435,1750114244089,-460.0,0.00023013,4]
[366200437,1750114244098,-460.0,0.00023013,4]
[366200439,1750114244109,-460.0,0.00023013,2]
[366200441,1750114244120,-460.0,0.00023013,4]
[366200443,1750114244130,-460.0,0.00023013,4]
[366200445,1750114244139,-460.0,0.00023013,4]
[366200447,1750114244150,-168.0,0.00023022,2]
[366200449,1750114244162,-3056.19,0.00023037,2]
[366200451,1750114244172,-348.0,0.00023149,2]
[366200453,1750114244182,-500.60381911,0.00023194,2]
[366200455,1750114244192,-500.0,0.00023194,2]
[366200457,1750114244201,-500.0,0.00023194,2]
[366200459,1750114244214,-391.0,0.00023196,2]
[366200461,1750114244224,-168.0,0.00023215,2]
[366200463,1750114244234,-328.73271534,0.00023219,2]
[366200465,1750114244244,-1004.43893691,0.00023232,2]
[366200467,1750114244254,-500.0,0.00023254,2]
[366200469,1750114244264,-987.83526815,0.00023254,2]
[366200471,1750114244274,-348.0,0.00023264,2]
[366200473,1750114244284,-460.0,0.00023287,4]
[366200475,1750114244294,-460.0,0.00023287,4]
[366200477,1750114244304,-460.0,0.00023287,2]
[366200479,1750114244314,-460.0,0.00023287,4]
[366200481,1750114244323,-342.12358257,0.00023287,4]
[366200483,1750114244336,-460.0,0.00023287,4]
[366200485,1750114244345,-906.66146165,0.00023303,2]
[366200487,1750114244355,-600.0,0.00023314,2]
[366200489,1750114244365,-415.95416705,0.0002335,2]
[366200491,1750114244375,-1000.0,0.00023353,2]
[366200493,1750114244384,-168.0,0.00023359,2]
[366200495,1750114244394,-160.0,0.00023369,2]
[366200497,1750114244403,-1000.0,0.00023435,2]
[366200499,1750114244416,-501.8668994,0.000235,2]
[366200501,1750114244426,-500.0,0.000235,2]
[366200503,1750114244436,-171.1985768,0.00023561,4]
[366200505,1750114244446,-460.0,0.00023561,4]
[366200508,1750114244457,-460.0,0.00023561,2]
[366200509,1750114244466,-432.78,0.00023561,4]
[366200511,1750114244475,-460.0,0.00023561,4]
[366200514,1750114244485,-250.0,0.00023588,2]
[366200516,1750114244495,-207.4,0.00023591,2]
[366200517,1750114244503,-5000.0,0.00023591,2]
[366200520,1750114244514,-151.0,0.00023591,2]
[366200521,1750114244523,-500.0,0.00023591,2]
[366200523,1750114244532,-1688.0,0.00023591,2]
[366200525,1750114244541,-500.0,0.00023591,2]
[366200527,1750114244551,-500.0,0.00023591,2]
[366200529,1750114244560,-500.0,0.00023591,2]
[366200532,1750114244570,-500.0,0.00023591,2]
[366200534,1750114244580,-500.0,0.00023591,2]
[366200536,1750114244590,-500.0,0.00023591,2]
[366200538,1750114244600,-500.0,0.00023591,2]
[366200540,1750114244609,-500.0,0.00023591,2]
[366200542,1750114244619,-500.0,0.00023591,2]
[366200544,1750114244630,-500.0,0.00023591,2]
[366200546,1750114244639,-500.0,0.00023591,2]
[366200548,1750114244649,-500.0,0.00023591,2]
[366200550,1750114244659,-500.0,0.00023591,2]
[366200552,1750114244669,-500.0,0.00023591,2]
[366200554,1750114244679,-500.0,0.00023591,2]
[366200556,1750114244688,-500.0,0.00023591,2]
[366200558,1750114244699,-500.0,0.00023591,2]
[366200560,1750114244711,-500.0,0.00023591,2]
[366200562,1750114244720,-500.0,0.00023591,2]
[366200564,1750114244730,-500.0,0.00023591,2]
[366200566,1750114244740,-153.214995,0.00023591,7]
[366200568,1750114244751,-151.0,0.00023591,7]
[366200569,1750114244761,-151.0,0.00023591,7]
[366200571,1750114244771,-159.481499,0.00023591,7]
[366200573,1750114244782,-151.0,0.00023591,7]
[366200574,1750114244792,-153.7149,0.00023591,7]
[366200576,1750114244802,-151.0,0.00023591,7]
[366200578,1750114244812,-151.0,0.00023591,7]
[366200580,1750114244823,-151.0,0.00023591,7]
[366200582,1750114244833,-151.0,0.00023591,7]
[366200584,1750114244844,-151.0,0.00023591,7]
[366200585,1750114244854,-207.239746,0.00023591,7]
[366200587,1750114244863,-151.0,0.00023591,7]
[366200589,1750114244873,-151.0,0.00023591,7]
[366200591,1750114244894,-207.239746,0.00023591,7]
[366200593,1750114244906,-151.0,0.00023591,7]
[366200595,1750114244916,-151.0,0.00023591,7]
[366200597,1750114244926,-151.0,0.00023591,7]
[366200599,1750114244937,-151.0,0.00023591,7]
[366200601,1750114244947,-151.0,0.00023591,7]
[366200602,1750114244960,-151.0,0.00023591,7]
[366200604,1750114244970,-151.0,0.00023591,7]
[366200618,1750114244981,-185.465959,0.00023591,7]
[366200620,1750114245150,-151.0,0.00023591,7]
[366200622,1750114245161,-151.66546,0.00023591,7]
[366200624,1750114245171,-151.0,0.00023591,7]
[366200626,1750114245182,-151.0,0.00023591,7]
[366200628,1750114245192,-151.0,0.00023591,7]
[366200630,1750114245203,-151.0,0.00023591,7]
[366200631,1750114245215,-151.0,0.00023591,7]
[366200633,1750114245226,-293.178687,0.00023591,7]
[366200635,1750114245236,-151.0,0.00023591,7]
[366200637,1750114245247,-151.0,0.00023591,7]
[366200639,1750114245258,-151.0,0.00023591,7]
[366200641,1750114245268,-151.0,0.00023605,7]
[366200642,1750114245278,-151.0,0.00023605,7]
[366200644,1750114245287,-151.0,0.00023605,7]
[366200646,1750114245298,-377.1560245,0.00023605,2]
[366200648,1750114245308,-1750.456,0.00023646,2]
[366200650,1750114245318,-6118.74506105,0.00023688,2]
[366200651,1750114245328,-1815.222872,0.00023701,2]
[366200653,1750114245338,-507.7224305,0.00023742,2]
[366200655,1750114245351,-159.41069738,0.00023753,2]
[366200657,1750114245361,-155.19910141,0.00023756,2]
[366200659,1750114245371,-78883.97981134,0.00023788,2]
[366200661,1750114245381,-151.0,0.00023788,7]
[366200662,1750114245392,-153.896652,0.00023788,7]
[366200664,1750114245402,-151.975363,0.00023788,7]
[366200666,1750114245412,-151.0,0.00023788,7]
[366200668,1750114245423,-207.239746,0.00023788,7]
[366200670,1750114245433,-207.239746,0.00023788,7]
[366200671,1750114245443,-151.0,0.00023788,7]
[366200674,1750114245457,-151.0,0.00023788,7]
[366200675,1750114245467,-151.0,0.00023788,7]
[366200677,1750114245477,-151.0,0.00023788,7]
[366200679,1750114245487,-151.0,0.00023788,7]
[366200681,1750114245497,-151.0,0.00023788,7]
[366200683,1750114245507,-151.0,0.00023788,7]
[366200685,1750114245517,-151.0,0.00023788,7]
[366200687,1750114245527,-301.830532,0.00023788,7]
[366200689,1750114245537,-20421.20665608,0.000238,2]
[366200691,1750114245547,-210.0,0.00023835,4]
[366200693,1750114245557,-460.0,0.00023835,2]
[366200694,1750114245567,-460.0,0.00023835,4]
[366200697,1750114245577,-500.0,0.00023901,2]
[366200699,1750114245588,-342.61103439,0.00023962,2]
[366200701,1750114245598,-1500.0,0.00023983,2]
[366200702,1750114245607,-964.0,0.00023989,2]
[366200704,1750114245617,-2160.0,0.00023989,2]
[366200707,1750114245627,-586.0,0.00024,2]
[366200709,1750114245637,-1426.9916122,0.00024,2]
[366200712,1750114245647,-170.05818164,0.00024048,2]
[366200714,1750114245656,-159.41069738,0.00024055,2]
[366200716,1750114245666,-415.95416705,0.00024075,2]
[366200718,1750114245676,-460.0,0.00024109,2]
[366200720,1750114245687,-460.0,0.00024109,4]
[366200721,1750114245696,-5000.0,0.00024139,2]
[366200723,1750114245707,-151.0,0.00024139,7]
[366200725,1750114245717,-151.0,0.00024139,7]
[366200728,1750114245727,-151.0,0.00024139,7]
[366200730,1750114245737,-393.0,0.00024214,2]
[366200733,1750114245747,-424.54874296,0.00024225,2]
[366200737,1750114245757,-207.239746,0.00024272,7]
[366200741,1750114245767,-207.239746,0.00024272,7]
[366200745,1750114245778,-6118.74506105,0.00024272,2]
[366200747,1750114245788,-229.90125484,0.000243,7]
[366200749,1750114245798,-150.0,0.00024327,2]
[366200751,1750114245808,-460.0,0.00024383,4]
[366200753,1750114245818,-1360.753375,0.00024401,3]
[366200755,1750114245827,-1227.0,0.00024429,2]
[366200756,1750114245837,-1000.0,0.00024531,2]
[366200758,1750114245847,-391.0,0.000246,2]
[366200760,1750114245858,-151.0,0.000246,8]
[366200762,1750114245868,-153.0,0.00024623,2]
[366200764,1750114245878,-153.0,0.00024623,2]
[366200766,1750114245888,-153.0,0.00024623,2]
[366200768,1750114245898,-153.0,0.00024623,2]
[366200770,1750114245908,-153.0,0.00024623,2]
[366200772,1750114245918,-153.0,0.00024623,2]
[366200774,1750114245928,-153.0,0.00024623,2]
[366200775,1750114245937,-153.0,0.00024623,2]
[366200777,1750114245947,-153.0,0.00024623,2]
[366200779,1750114245959,-153.0,0.00024623,2]
[366200781,1750114245970,-153.0,0.00024624,2]
[366200783,1750114245980,-153.0,0.00024624,2]
[366200785,1750114245990,-153.0,0.00024624,2]
[366200787,1750114246000,-348.0,0.00024633,2]
[366200789,1750114246011,-5188.43487911,0.00024651,2]
[366200791,1750114246022,-460.0,0.00024657,4]
[366200792,1750114246033,-800.0,0.0002468,2]
[366200794,1750114246043,-650.04,0.00024682,4]
[366200796,1750114246054,-151.0,0.000247,5]
[366200798,1750114246064,-151.0,0.000247,9]
[366200800,1750114246074,-800.0,0.00024711,2]
[366200802,1750114246087,-160.0,0.00024739,2]
[366200803,1750114246097,-151.0,0.00024743,7]
[366200805,1750114246107,-800.0,0.00024757,2]
[366200807,1750114246117,-203.24436406,0.00024774,2]
[366200809,1750114246127,-2000.0,0.000248,2]
[366200811,1750114246137,-2000.0,0.000248,2]
[366200813,1750114246147,-415.95416705,0.000248,2]
[366200815,1750114246157,-151.0,0.000248,7]
[366200817,1750114246167,-323.61,0.000248,31]
[366200819,1750114246177,-323.61,0.000248,31]
[366200820,1750114246186,-323.61,0.000248,31]
[366200822,1750114246196,-323.61,0.000248,31]
[366200824,1750114246207,-323.61,0.000248,31]
[366200826,1750114246217,-323.61,0.000248,31]
[366200828,1750114246227,-323.61,0.000248,31]
[366200830,1750114246237,-323.61,0.000248,31]
[366200832,1750114246247,-323.61,0.000248,31]
[366200833,1750114246257,-323.61,0.000248,31]
[366200835,1750114246267,-323.61,0.000248,31]
[366200837,1750114246277,-323.61,0.000248,31]
[366200839,1750114246287,-323.61,0.000248,31]
[366200841,1750114246297,-323.61,0.000248,31]
[366200843,1750114246306,-323.61,0.000248,31]
[366200845,1750114246316,-323.61,0.000248,31]
[366200847,1750114246328,-151.0,0.000248,7]
[366200849,1750114246340,-6118.74506105,0.00024856,2]
[366200851,1750114246350,-800.0,0.00024876,2]
[366200853,1750114246360,-1344.561654,0.0002488,5]
[366200855,1750114246370,-207.239746,0.0002488,7]
[366200857,1750114246379,-207.239746,0.0002488,7]
[366200859,1750114246389,-650.04,0.00024882,2]
[366200861,1750114246399,-1712.599999,0.000249,2]
[366200863,1750114246408,-1426.9916122,0.000249,120]
[366200865,1750114246418,-1000.0,0.000249,5]
[366200866,1750114246429,-207.239746,0.000249,7]
[366200868,1750114246439,-207.239746,0.000249,7]
[366200870,1750114246450,-309464.37413279,0.000249,2]
[366200875,1750114246501,-362.23,0.00023678,10]
[366200877,1750114246512,-692.31,0.00024881,2]
[366200880,1750114246524,-107.69,0.00024881,2]
[366200882,1750114246534,-617.58306679,0.000249,2]
[366200884,1750114246546,-2802.14627477,0.000249,2]
[366200886,1750114246558,-709.18368616,0.000249,2]
[366201471,1750114281677,160.720046,0.00013699,2]
[366201498,1750114631180,157.0,0.00024953,60]
[366201529,1750115433110,-640.33305802,0.00020726,2]
[366201537,1750115433184,-254.87,0.00020726,2]
[366201762,1750115438431,-580.10694198,0.00020726,2]
[366201764,1750115438441,-300.0,0.00020924,2]
[366201767,1750115438451,-300.0,0.00020924,2]
[366201769,1750115438460,-300.0,0.00020924,2]
[366201771,1750115438471,-300.0,0.00020924,2]
[366201773,1750115438481,-500.0,0.00021122,2]
[366201775,1750115438491,-34.6197639,0.00021124,2]
[366201777,1750115438505,-465.3802361,0.00021124,2]
[366201779,1750115438515,-500.0,0.00021124,2]
[366201781,1750115438525,-244.39325911,0.00021124,2]
[366201783,1750115438534,-500.0,0.00021124,2]
[366201785,1750115438545,-207.39957648,0.00021124,2]
[366201787,1750115438555,-500.0,0.00021124,2]
[366201790,1750115438566,-500.0,0.00021124,2]
[366201792,1750115438576,-500.0,0.00021124,2]
[366201794,1750115438586,-300.0,0.00021124,2]
[366201796,1750115438596,-500.0,0.00021124,2]
[366201798,1750115438606,-500.0,0.00021124,2]
[366201800,1750115438615,-500.0,0.00021124,2]
[366201802,1750115438625,-200.0,0.00021124,2]
[366201804,1750115438634,-500.0,0.00021124,2]
[366201806,1750115438644,-500.0,0.00021124,2]
[366201808,1750115438654,-368.67358226,0.00021124,2]
[366201810,1750115438664,-166.17890251,0.00021267,2]
[366201812,1750115438673,-500.0,0.000214,2]
[366201814,1750115438683,-500.0,0.000214,2]
[366201815,1750115438693,-2644.97444354,0.00021617,2]
[366201818,1750115438705,-336.26733391,0.00021617,2]
[366201820,1750115438718,-1567.3008456,0.00021617,2]
[366201965,1750115440776,-5067.813578,0.00021617,2]
[366202301,1750115867031,160.720048,0.00013699,2]
[366202333,1750116614326,6716.57408208,0.00019513,2]
[366202334,1750116614356,10000.0,0.00019513,2]
[366202335,1750116614390,8183.42591792,0.00019513,2]
[366202375,1750116632654,-255.57243791,0.00020039,2]
[366202808,1750116638596,-449.97384209,0.00020039,2]
[366202811,1750116638607,-3944.0517431,0.0002004,2]
[366202812,1750116638618,-1200.0,0.00020249,2]
[366202813,1750116638628,-300.0,0.0002025,2]
[366202814,1750116638638,-248.0,0.0002025,2]
[366202815,1750116638648,-180.177,0.00020465,2]
[366202816,1750116638659,-502.25716102,0.00020467,2]
[366202817,1750116638668,-119.36629055,0.00020467,2]
[366203359,1750116646889,-277.32315529,0.00020467,2]
[366203360,1750116646899,-500.0,0.00020467,2]
[366203361,1750116646909,-612.88741629,0.00020467,2]
[366203362,1750116646919,-500.0,0.00020625,2]
[366203363,1750116646930,-297.29849381,0.00020625,2]
[366203364,1750116646939,-500.0,0.0002075,2]
[366203365,1750116646950,-500.0,0.0002075,2]
[366203366,1750116646960,-500.0,0.0002075,2]
[366203367,1750116646972,-500.89279523,0.0002076,2]
[366203368,1750116646982,-500.0,0.0002076,2]
[366203369,1750116646992,-200.0,0.0002076,10]
[366203370,1750116647002,-200.0,0.0002076,10]
[366203371,1750116647015,-200.0,0.0002076,10]
[366203373,1750116647025,-217.324923,0.0002076,10]
[366203374,1750116647035,-500.0,0.00020875,2]
[366203375,1750116647044,-564.10511985,0.00020875,2]
[366203376,1750116647054,-160.25489566,0.00020875,2]
[366203377,1750116647064,-447.3515898,0.00020875,2]
[366203378,1750116647074,-1474.38,0.00020954,2]
[366203379,1750116647084,-500.0,0.00021067,2]
[366203380,1750116647094,-500.0,0.00021122,2]
[366203381,1750116647104,-200.0,0.00021831,2]
[366203382,1750116647113,-500.0,0.00021831,2]
[366203383,1750116647123,-152.07484247,0.00021831,2]
[366203384,1750116647133,-500.0,0.00021831,2]
[366203385,1750116647143,-500.0,0.00021831,2]
[366203386,1750116647153,-517.49037416,0.00021831,2]
[366203387,1750116647163,-160.0,0.00021832,2]
[366203388,1750116647173,-160.0,0.00021832,2]
[366203389,1750116647183,-160.0,0.00021832,2]
[366203390,1750116647193,-160.0,0.00021832,2]
[366203391,1750116647202,-213.36025772,0.00021832,2]
[366203392,1750116647212,-835.67987521,0.00021832,2]
[366203393,1750116647223,-229.90125484,0.00021832,2]
[366203394,1750116647232,-424.54874296,0.00021832,2]
[366203395,1750116647242,-12537.89035583,0.00021832,2]
[366203396,1750116647252,-166.17890248,0.00022034,2]
[366203397,1750116647262,-510.60661617,0.00022134,2]
[366203399,1750116647271,-2948.76,0.00022859,2]
[366203401,1750116647281,-160.720048,0.00023182,2]
[366203403,1750116647291,-500.0,0.00023314,2]
[366203405,1750116647300,-5000.0,0.00023654,2]
[366203406,1750116647310,-207.4,0.00023654,2]
[366203407,1750116647320,-500.0,0.00023654,2]
[366203408,1750116647330,-500.0,0.00023654,2]
[366203409,1750116647339,-500.0,0.00023654,2]
[366203410,1750116647349,-500.0,0.00023654,2]
[366203411,1750116647359,-500.0,0.00023654,2]
[366203412,1750116647368,-500.0,0.00023654,2]
[366203413,1750116647377,-500.0,0.00023654,2]
[366203414,1750116647387,-500.0,0.00023654,2]
[366203415,1750116647397,-500.0,0.00023654,2]
[366203416,1750116647408,-500.0,0.00023654,2]
[366203417,1750116647417,-500.0,0.00023654,2]
[366203418,1750116647427,-500.0,0.00023654,2]
[366203419,1750116647436,-500.0,0.00023654,2]
[366203420,1750116647446,-500.0,0.00023654,2]
[366203421,1750116647455,-247.04809669,0.00023654,2]
[366203422,1750116647468,-964.0,0.00023742,2]
[366203423,1750116647478,-500.25304027,0.00023767,2]
[366203424,1750116647488,-500.0,0.00023767,2]
[366203425,1750116647498,-500.79071898,0.00023767,2]
[366203426,1750116647508,-500.0,0.00023767,2]
[366203427,1750116647518,-268.122783,0.00023767,2]
[366203428,1750116647527,-500.0,0.00023767,2]
[366203429,1750116647536,-500.0,0.00023767,2]
[366203430,1750116647546,-168.93386086,0.00023767,2]
[366203431,1750116647555,-500.0,0.000238,2]
[366203432,1750116647565,-600.0,0.000238,2]
[366203433,1750116647575,-500.0,0.000238,2]
[366203434,1750116647585,-500.0,0.000238,2]
[366203435,1750116647595,-500.0,0.000238,2]
[366203436,1750116647605,-563.16687752,0.00023817,2]
[366203437,1750116647614,-500.0,0.00023817,2]
[366203438,1750116647623,-500.0,0.0002384,2]
[366203439,1750116647633,-500.0,0.00023843,2]
[366203440,1750116647643,-500.0,0.00023866,2]
[366203441,1750116647652,-500.0,0.00023866,2]
[366203442,1750116647661,-443.42360724,0.00023866,2]
[366203443,1750116647672,-500.0,0.00023866,2]
[366203444,1750116647682,-500.0,0.00023866,2]
[366203445,1750116647692,-500.0,0.00023866,2]
[366203446,1750116647701,-500.0,0.00023867,2]
[366203447,1750116647711,-500.0,0.00023867,2]
[366203448,1750116647721,-500.0,0.00023867,2]
[366203449,1750116647730,-500.0,0.00023867,2]
[366203450,1750116647740,-500.0,0.00023867,2]
[366203451,1750116647749,-500.0,0.00023867,2]
[366203452,1750116647759,-500.0,0.00023867,2]
[366203453,1750116647769,-399.78354313,0.00023913,2]
[366203454,1750116647779,-500.0,0.0002398,2]
[366203455,1750116647789,-815.42,0.00024,2]
[366203456,1750116647799,-168.0,0.0002407,2]
[366203457,1750116647809,-653.0,0.00024095,2]
[366203458,1750116647820,-2160.0,0.00024095,2]
[366203459,1750116647830,-406.0,0.00024095,2]
[366203460,1750116647840,-168.0,0.00024185,2]
[366203461,1750116647850,-247.364,0.00024295,2]
[366203462,1750116647860,-500.0,0.00024315,2]
[366203463,1750116647870,-1200.0,0.00024348,2]
[366203464,1750116647879,-1000.0,0.00024348,2]
[366203465,1750116647890,-1000.0,0.00024348,2]
[366203466,1750116647899,-248.59908114,0.00024348,2]
[366203467,1750116647909,-500.0,0.00024365,2]
[366203468,1750116647921,-500.0,0.00024388,2]
[366203469,1750116647931,-1000.0,0.00024391,2]
[366203470,1750116647943,-1465.468719,0.00024401,3]
[366203471,1750116647955,-150.178,0.00024405,2]
[366203472,1750116647965,-168.0,0.00024406,2]
[366203473,1750116647974,-1000.0,0.00024415,2]
[366203474,1750116647984,-1000.0,0.00024528,2]
[366203475,1750116647993,-153.0,0.00024602,2]
[366203476,1750116648003,-153.0,0.00024602,2]
[366203477,1750116648015,-153.0,0.00024602,2]
[366203478,1750116648024,-153.0,0.00024602,2]
[366203479,1750116648033,-153.0,0.00024602,2]
[366203480,1750116648043,-153.0,0.00024602,2]
[366203481,1750116648052,-153.0,0.00024602,2]
[366203482,1750116648062,-153.0,0.00024602,2]
[366203483,1750116648071,-153.0,0.00024602,2]
[366203484,1750116648081,-2020.8268405,0.00024648,2]
[366203485,1750116648091,-800.15794755,0.0002465,2]
[366203486,1750116648100,-651.66,0.00024679,3]
[366203487,1750116648110,-2020.82684047,0.00024691,2]
[366203488,1750116648119,-333.52,0.00024694,10]
[366203489,1750116648129,-277.93,0.00024694,10]
[366203490,1750116648139,-505.29982678,0.00024703,30]
[366203491,1750116648149,-160.0,0.00024703,2]
[366203492,1750116648159,-124947.93190107,0.00024704,2]
[366203493,1750116648168,-2020.82684047,0.00024735,2]
[366203494,1750116648179,-500.000001,0.00024748,2]
[366203495,1750116648188,-4423.14,0.00024763,2]
[366203496,1750116648198,-2020.82684047,0.00024778,2]
[366203497,1750116648208,-4566.64930458,0.00024796,2]
[366203498,1750116648217,-2000.0,0.000248,2]
[366203499,1750116648227,-2000.0,0.000248,2]
[366203500,1750116648237,-151.0,0.000248,7]
[366203501,1750116648246,-271.86,0.000248,31]
[366203502,1750116648256,-271.86,0.000248,31]
[366203503,1750116648265,-271.86,0.000248,31]
[366203504,1750116648275,-271.86,0.000248,31]
[366203505,1750116648284,-271.86,0.000248,31]
[366203506,1750116648295,-271.86,0.000248,31]
[366203507,1750116648305,-271.86,0.000248,31]
[366203508,1750116648315,-271.86,0.000248,31]
[366203509,1750116648324,-271.86,0.000248,31]
[366203510,1750116648334,-271.86,0.000248,31]
[366203511,1750116648345,-271.86,0.000248,31]
[366203512,1750116648355,-271.86,0.000248,31]
[366203513,1750116648364,-271.86,0.000248,31]
[366203514,1750116648374,-271.86,0.000248,31]
[366203515,1750116648383,-271.86,0.000248,31]
[366203516,1750116648393,-271.86,0.000248,31]
[366203517,1750116648402,-151.0,0.000248,7]
[366203518,1750116648412,-151.0,0.000248,7]
[366203519,1750116648422,-800.0,0.00024807,2]
[366203520,1750116648431,-2020.82684047,0.00024821,2]
[366203521,1750116648442,-4566.64930457,0.00024827,2]
[366203522,1750116648451,-176.9,0.00024853,4]
[366203523,1750116648461,-172.58,0.00024853,4]
[366203524,1750116648471,-208.17,0.00024853,4]
[366203525,1750116648481,-161.91478727,0.00024853,4]
[366203526,1750116648491,-161.91478727,0.00024853,4]
[366203527,1750116648500,-161.91,0.00024853,4]
[366203528,1750116648512,-4566.64930457,0.00024857,2]
[366203529,1750116648522,-5738.07650511,0.00024857,2]
[366203530,1750116648531,-448.4052585,0.00024872,2]
[366203531,1750116648541,-500.0,0.00024873,2]
[366203532,1750116648551,-500.0,0.00024873,2]
[366203533,1750116648562,-651.66,0.00024879,7]
[366203534,1750116648573,-1800.0,0.00024896,2]
[366203535,1750116648582,-1500.0,0.00024896,2]
[366203536,1750116648593,-1500.0,0.00024896,2]
[366203537,1750116648603,-200.0,0.00024899,2]
[366203538,1750116648613,-207.09494989,0.000249,2]